[Event "EYTCC U12 Open 2019"]
[Site "Pardubice"]
[Date "2019.07.11"]
[Round "1.8"]
[White "Werner, Hong Quan Dan"]
[Black "Giang, Tran Nam"]
[Result "0-1"]
[ECO "B40"]
[WhiteElo "1734"]
[BlackElo "1931"]
[Annotator "NA"]
[PlyCount "72"]
[EventDate "2019.07.11"]
[EventType "swiss"]
[EventCountry "CZE"]
[SourceTitle "playchess.com"]
[Source "ChessBase"]
[SourceQuality "1"]
[WhiteTeam "Czech Republic"]
[BlackTeam "Hungary"]
[WhiteTeamCountry "CZE"]
[BlackTeamCountry "HUN"]
[TimeControl "40/5400+30:1800+30"]

1. e4 {[%emt 0:00:00]} c5 {[%emt 0:00:00]} 2. Nf3 {[%emt 0:00:03]} e6 {[%emt 0:00:00]} 3. d4 {[%emt 0:00:32]} cxd4 {[%emt 0:00:00]} 4. Nxd4 {[%emt 0:00:36]} Qb6 {[%emt 0:00:00]} 5. Nb3 {[%emt 0:07:44]} Qc7 {[%emt 0:00:05]} 6. Nc3 {[%emt 0:05:22]} a6 {[%emt 0:00:10]} 7. Be3 {[%emt 0:02:52]} Nf6 {[%emt 0:03:28]} 8. f3 {[%emt 0:02:18]} Nc6 {[%emt 0:04:52]} 9. Qd2 {[%emt 0:01:08]} b5 {[%emt 0:01:06]} 10. O-O-O {[%emt 0:01:35]} Be7 {[%emt 0:06:27]} 11. g4 {[%emt 0:04:05]} O-O {[%emt 0:04:23]} 12. h4 {[%emt 0:02:30]} Bb7 {[%emt 0:09:59]} 13. h5 {[%emt 0:03:49]} Rfd8 {[%emt 0:06:11]} 14. g5 {[%emt 0:02:00]} Ne8 {[%emt 0:00:15]} 15. g6 {[%emt 0:02:41]} fxg6 {[%emt 0:04:07]} 16. hxg6 {[%emt 0:00:30]} h6 {[%emt 0:00:13]} 17. Bxh6 {[%emt 0:12:23]} Qg3 {[%emt 0:08:48]} 18. Bd3 {[%emt 0:06:34]} gxh6 {[%emt 0:02:43]} 19. Rdg1 {[%emt 0:00:14]} Qe5 {[%emt 0:00:42]} 20. Qxh6 {[%emt 0:00:42]} Qg7 {[%emt 0:00:16]} 21. Qh7+ {[%emt 0:00:35]} Kf8 {[%emt 0:00:10]} 22. Qh8+ {[%emt 0:04:27]} Qxh8 {[%emt 0:00:12]} 23. Rxh8+ {[%emt 0:00:10]} Kg7 {[%emt 0:00:03]} 24. Rh7+ {[%emt 0:01:17]} Kg8 {[%emt 0:00:11]} 25. g7 {[%emt 0:01:30]} Nf6 {[%emt 0:00:43]} 26. Rh8+ {[%emt 0:00:37]} Kf7 {[%emt 0:00:06]} 27. Rh2 {[%emt 0:06:13]} Rg8 {[%emt 0:04:43]} 28. Rhg2 {[%emt 0:05:57]} Nh5 {[%emt 0:02:18]} 29. e5 {[%emt 0:00:28]} Nxe5 {[%emt 0:01:20]} 30. Nd2 {[%emt 0:08:26]} Nxd3+ {[%emt 0:01:25]} 31. cxd3 {[%emt 0:00:13]} Rxg7 {[%emt 0:00:57]} 32. Nde4 {[%emt 0:01:05]} Rxg2 {[%emt 0:00:48]} 33. Rxg2 {[%emt 0:00:16]} Nf4 {[%emt 0:03:23]} 34. Rg4 {[%emt 0:00:21]} Nxd3+ {[%emt 0:00:41]} 35. Kd2 {[%emt 0:00:10]} Ne5 {[%emt 0:00:52]} 36. Rf4+ {[%emt 0:00:18]} Kg6 0-1

[Event "EYTCC U12 Open 2019"]
[Site "Pardubice"]
[Date "2019.07.11"]
[Round "1.9"]
[White "Tarhan, Adar"]
[Black "Fiszer, Bartosz"]
[Result "1-0"]
[ECO "B67"]
[WhiteElo "1972"]
[BlackElo "2124"]
[Annotator "NA"]
[PlyCount "165"]
[EventDate "2019.07.11"]
[EventType "swiss"]
[EventCountry "CZE"]
[SourceTitle "playchess.com"]
[Source "ChessBase"]
[SourceQuality "1"]
[WhiteTeam "Turkey"]
[BlackTeam "Poland"]
[WhiteTeamCountry "TUR"]
[BlackTeamCountry "POL"]
[TimeControl "40/5400+30:1800+30"]

1. e4 {[%emt 0:00:00]} c5 {[%emt 0:00:00]} 2. Nf3 {[%emt 0:00:00]} d6 {[%emt 0:00:00]} 3. d4 {[%emt 0:00:00]} cxd4 {[%emt 0:00:00]} 4. Nxd4 {[%emt 0:00:31]} Nf6 {[%emt 0:00:00]} 5. Nc3 {[%emt 0:00:06]} Nc6 {[%emt 0:00:00]} 6. Bg5 {[%emt 0:01:50]} e6 {[%emt 0:00:05]} 7. Qd2 {[%emt 0:00:16]} a6 {[%emt 0:00:06]} 8. O-O-O {[%emt 0:04:53]} Bd7 {[%emt 0:00:30]} 9. f4 {[%emt 0:03:25]} b5 {[%emt 0:00:31]} 10. Qe1 {[%emt 0:21:49]} Nxd4 {[%emt 0:06:34]} 11. Rxd4 {[%emt 0:00:41]} Qb6 {[%emt 0:00:14]} 12. Qd2 {[%emt 0:03:18]} b4 {[%emt 0:06:42]} 13. Nd1 {[%emt 0:03:17]} a5 {[%emt 0:11:17]} 14. Bc4 {[%emt 0:07:44]} Bc6 {[%emt 0:04:40]} 15. Bxf6 {[%emt 0:04:58]} gxf6 {[%emt 0:00:48]} 16. Re1 {[%emt 0:01:12]} Qc5 {[%emt 0:00:54]} 17. Bb3 {[%emt 0:08:28]} a4 {[%emt 0:00:49]} 18. Bd5 {[%emt 0:00:43]} b3 {[%emt 0:01:23]} 19. a3 {[%emt 0:01:14]} Bxd5 {[%emt 0:14:26]} 20. exd5 {[%emt 0:00:32]} e5 {[%emt 0:00:30]} 21. Nc3 {[%emt 0:04:10]} Bh6 {[%emt 0:12:48]} 22. Nxa4 Qa7 {[%emt 0:04:19]} 23. Rc4 {[%emt 0:07:26]} O-O {[%emt 0:00:20]} 24. Kb1 {[%emt 0:01:32]} Bxf4 {[%emt 0:00:25]} 25. Qe2 {[%emt 0:00:44]} Rfb8 {[%emt 0:04:35]} 26. g3 {[%emt 0:01:30]} bxc2+ {[%emt 0:00:24]} 27. Qxc2 {[%emt 0:00:08]} Bg5 {[%emt 0:01:05]} 28. h4 {[%emt 0:01:46]} Be3 {[%emt 0:00:15]} 29. Rg4+ {[%emt 0:00:21]} Kf8 {[%emt 0:02:02]} 30. Qxh7 {[%emt 0:00:48]} Ke7 {[%emt 0:07:17]} 31. Qd3 {[%emt 0:05:10]} Bf2 {[%emt 0:01:47]} 32. Re2 {[%emt 0:01:35]} Qd7 {[%emt 0:04:13]} 33. Rc4 {[%emt 0:03:05]} Rxa4 {[%emt 0:00:55]} 34. Rxa4 {[%emt 0:02:08]} Qxa4 {[%emt 0:00:03]} 35. Rxf2 {[%emt 0:00:05]} e4 {[%emt 0:00:55]} 36. Qc2 {[%emt 0:03:56]} Qxc2+ {[%emt 0:02:08]} 37. Kxc2 {[%emt 0:00:03]} Rg8 {[%emt 0:00:11]} 38. Rf4 {[%emt 0:01:08]} f5 39. Rxf5 {[%emt 0:00:20]} Rxg3 {[%emt 0:00:13]} 40. Rf4 {[%emt 0:00:22]} e3 {[%emt 0:00:36]} 41. Kd3 {[%emt 0:30:48]} Rg2 {[%emt 0:30:57]} 42. b3 {[%emt 0:01:20]} Rb2 {[%emt 0:00:44]} 43. Kc3 {[%emt 0:02:18]} Ra2 {[%emt 0:00:47]} 44. Re4+ {[%emt 0:00:35]} Kf6 {[%emt 0:01:15]} 45. Rxe3 {[%emt 0:00:06]} Rxa3 {[%emt 0:00:02]} 46. Rf3+ {[%emt 0:00:28]} Kg6 {[%emt 0:01:36]} 47. h5+ {[%emt 0:00:36]} Kxh5 {[%emt 0:00:30]} 48. Rxf7 {[%emt 0:00:06]} Ra5 {[%emt 0:00:00]} 49. Kc4 {[%emt 0:00:38]} Rc5+ {[%emt 0:00:01]} 50. Kd4 {[%emt 0:00:34]} Rb5 {[%emt 0:00:01]} 51. Rd7 {[%emt 0:00:41]} Rxb3 {[%emt 0:00:21]} 52. Rxd6 {[%emt 0:00:03]} Kg5 {[%emt 0:00:08]} 53. Re6 {[%emt 0:00:09]} Kf5 {[%emt 0:00:24]} 54. Re1 {[%emt 0:00:24]} Rb5 {[%emt 0:00:39]} 55. d6 {[%emt 0:00:25]} Rb2 {[%emt 0:00:28]} 56. Kc5 {[%emt 0:02:48]} Rd2 {[%emt 0:00:26]} 57. Kc6 {[%emt 0:00:08]} Kf6 {[%emt 0:00:30]} 58. d7 {[%emt 0:00:16]} Kf7 {[%emt 0:00:00]} 59. Kc7 {[%emt 0:00:10]} Rc2+ {[%emt 0:00:05]} 60. Kd8 {[%emt 0:00:05]} Rc3 {[%emt 0:00:05]} 61. Rf1+ {[%emt 0:02:51]} Kg7 {[%emt 0:00:17]} 62. Rf4 {[%emt 0:00:00]} Kg6 {[%emt 0:00:00]} 63. Ke7 {[%emt 0:00:00]} Kg5 {[%emt 0:00:00]} 64. d8=Q {[%emt 0:00:00]} Re3+ {[%emt 0:00:00]} 65. Kd6+ {[%emt 0:00:00]} Kxf4 {[%emt 0:00:00]} 66. Qf6+ {[%emt 0:00:00]} Kg4 {[%emt 0:00:00]} 67. Kd5 {[%emt 0:00:00]} Re2 {[%emt 0:00:00]} 68. Kd4 {[%emt 0:00:00]} Kg3 {[%emt 0:00:00]} 69. Kd3 {[%emt 0:00:00]} Rf2 {[%emt 0:00:00]} 70. Qg5+ {[%emt 0:00:00]} Kf3 71. Qg1 {[%emt 0:00:00]} Rg2 {[%emt 0:00:00]} 72. Qf1+ {[%emt 0:00:00]} Kg3 {[%emt 0:00:00]} 73. Ke3 {[%emt 0:00:00]} Kh2 {[%emt 0:00:00]} 74. Qf4+ {[%emt 0:00:00]} Kg1 {[%emt 0:00:00]} 75. Qh4 {[%emt 0:00:00]} Rg7 {[%emt 0:00:00]} 76. Kf3 {[%emt 0:00:00]} Rg2 {[%emt 0:00:00]} 77. Qe4 {[%emt 0:00:00]} Kh1 {[%emt 0:00:00]} 78. Qb1+ {[%emt 0:00:00]} Kh2 {[%emt 0:00:00]} 79. Qe1 {[%emt 0:00:00]} Ra2 {[%emt 0:00:00]} 80. Qe5+ {[%emt 0:00:00]} Kg1 {[%emt 0:00:00]} 81. Qg5+ {[%emt 0:00:00]} Kh2 {[%emt 0:00:00]} 82. Qh5+ {[%emt 0:00:00]} Kg1 {[%emt 0:00:00]} 83. Qg6+ {[%emt 0:00:00]} 1-0

[Event "EYTCC U12 Open 2019"]
[Site "Pardubice"]
[Date "2019.07.11"]
[Round "1.10"]
[White "Seemann, Jakub"]
[Black "Celik, Hasan Huseyin"]
[Result "1-0"]
[ECO "C07"]
[WhiteElo "2017"]
[BlackElo "1903"]
[Annotator "NA"]
[PlyCount "93"]
[EventDate "2019.07.11"]
[EventType "swiss"]
[EventCountry "CZE"]
[SourceTitle "playchess.com"]
[Source "ChessBase"]
[SourceQuality "1"]
[WhiteTeam "Poland"]
[BlackTeam "Turkey"]
[WhiteTeamCountry "POL"]
[BlackTeamCountry "TUR"]
[TimeControl "40/5400+30:1800+30"]

1. e4 {[%emt 0:00:00]} e6 {[%emt 0:00:00]} 2. d4 {[%emt 0:00:00]} d5 {[%emt 0:00:00]} 3. Nd2 {[%emt 0:00:00]} c5 {[%emt 0:00:00]} 4. exd5 {[%emt 0:00:05]} Qxd5 {[%emt 0:00:00]} 5. dxc5 {[%emt 0:00:08]} Bxc5 {[%emt 0:00:00]} 6. Ngf3 {[%emt 0:00:05]} Nf6 {[%emt 0:00:00]} 7. Bc4 {[%emt 0:00:05]} Qc6 {[%emt 0:00:26]} 8. Qe2 {[%emt 0:00:20]} O-O {[%emt 0:00:04]} 9. O-O {[%emt 0:00:14]} Nbd7 {[%emt 0:00:37]} 10. Nb3 {[%emt 0:00:17]} Bd6 {[%emt 0:00:18]} 11. Nbd4 {[%emt 0:00:31]} Qc5 {[%emt 0:00:01]} 12. c3 {[%emt 0:03:22]} Nb6 {[%emt 0:07:49]} 13. Bd3 {[%emt 0:02:04]} Nbd5 {[%emt 0:00:16]} 14. Ng5 {[%emt 0:04:48]} Nf4 {[%emt 0:22:17]} 15. Bxf4 {[%emt 0:00:38]} Bxf4 {[%emt 0:00:02]} 16. Ne4 {[%emt 0:03:00]} Qe7 {[%emt 0:00:54]} 17. Nxf6+ {[%emt 0:07:12]} Qxf6 {[%emt 0:00:05]} 18. Qe4 {[%emt 0:00:12]} g6 {[%emt 0:00:16]} 19. g3 {[%emt 0:01:15]} Bh6 {[%emt 0:00:59]} 20. f4 {[%emt 0:00:44]} Rd8 {[%emt 0:00:55]} 21. Nf3 {[%emt 0:03:49]} Rb8 {[%emt 0:05:41]} 22. Ne5 {[%emt 0:03:50]} b6 {[%emt 0:01:08]} 23. Bb5 {[%emt 0:12:22]} Bf8 {[%emt 0:03:38]} 24. b4 {[%emt 0:10:09]} Rd6 {[%emt 0:04:59]} 25. Bc6 {[%emt 0:06:51]} Qd8 {[%emt 0:08:21]} 26. b5 {[%emt 0:06:06]} Qc7 {[%emt 0:03:17]} 27. Nc4 {[%emt 0:06:45]} Rd8 {[%emt 0:00:06]} 28. Rad1 {[%emt 0:01:05]} Bg7 {[%emt 0:08:36]} 29. Rxd8+ {[%emt 0:01:14]} Qxd8 {[%emt 0:00:01]} 30. Qf3 {[%emt 0:00:18]} Qe7 {[%emt 0:00:57]} 31. Qd3 {[%emt 0:02:38]} Bb7 {[%emt 0:00:39]} 32. Qd6 {[%emt 0:00:31]} Qf8 {[%emt 0:00:34]} 33. Rd1 {[%emt 0:01:25]} Bxc6 {[%emt 0:01:46]} 34. bxc6 {[%emt 0:00:25]} Rc8 {[%emt 0:00:09]} 35. Ne5 {[%emt 0:01:50]} Qxd6 {[%emt 0:00:12]} 36. Rxd6 {[%emt 0:00:10]} Bf8 {[%emt 0:00:03]} 37. Rd7 {[%emt 0:00:30]} f6 {[%emt 0:00:05]} 38. c7 {[%emt 0:02:16]} fxe5 {[%emt 0:04:27]} 39. fxe5 {[%emt 0:00:05]} b5 {[%emt 0:00:03]} 40. Kf1 {[%emt 0:00:18]} a5 {[%emt 0:00:51]} 41. Ke2 {[%emt 0:30:33]} a4 {[%emt 0:30:04]} 42. Kd3 {[%emt 0:00:46]} h6 {[%emt 0:00:22]} 43. a3 {[%emt 0:01:21]} Kh8 {[%emt 0:00:22]} 44. Kc2 {[%emt 0:00:48]} Kg8 {[%emt 0:00:28]} 45. c4 {[%emt 0:00:45]} h5 {[%emt 0:02:34]} 46. cxb5 {[%emt 0:00:15]} g5 {[%emt 0:00:10]} 47. b6 1-0

[Event "EYTCC U12 Open 2019"]
[Site "Pardubice"]
[Date "2019.07.11"]
[Round "1.11"]
[White "Portakalci, Yusuf"]
[Black "Meers, Hubert"]
[Result "1/2-1/2"]
[ECO "E68"]
[WhiteElo "1764"]
[BlackElo "2141"]
[Annotator "NA"]
[PlyCount "111"]
[EventDate "2019.07.11"]
[EventType "swiss"]
[EventCountry "CZE"]
[SourceTitle "playchess.com"]
[Source "ChessBase"]
[SourceQuality "1"]
[WhiteTeam "Turkey"]
[BlackTeam "Poland"]
[WhiteTeamCountry "TUR"]
[BlackTeamCountry "POL"]
[TimeControl "40/5400+30:1800+30"]

1. d4 {[%emt 0:00:00]} g6 {[%emt 0:00:00]} 2. c4 {[%emt 0:00:00]} Bg7 {[%emt 0:00:00]} 3. Nf3 {[%emt 0:00:00]} Nf6 {[%emt 0:00:01]} 4. g3 {[%emt 0:00:00]} O-O {[%emt 0:01:42]} 5. Bg2 {[%emt 0:00:07]} d6 {[%emt 0:00:10]} 6. O-O {[%emt 0:00:25]} Nbd7 {[%emt 0:01:13]} 7. Nc3 {[%emt 0:00:45]} e5 {[%emt 0:01:02]} 8. e4 {[%emt 0:07:44]} exd4 {[%emt 0:01:34]} 9. Nxd4 {[%emt 0:02:15]} Nb6 {[%emt 0:01:24]} 10. b3 {[%emt 0:09:42]} a5 {[%emt 0:03:05]} 11. Bb2 {[%emt 0:02:58]} Nfd7 {[%emt 0:03:41]} 12. Qd2 Nc5 {[%emt 0:05:19]} 13. Nd5 {[%emt 0:30:39]} c6 {[%emt 0:05:15]} 14. Nxb6 {[%emt 0:04:36]} Qxb6 {[%emt 0:00:08]} 15. Rab1 {[%emt 0:01:55]} Bd7 {[%emt 0:13:17]} 16. a3 {[%emt 0:06:22]} Rfe8 {[%emt 0:08:33]} 17. Rfe1 {[%emt 0:02:42]} Ne6 {[%emt 0:03:20]} 18. Nxe6 {[%emt 0:01:49]} Bxb2 {[%emt 0:00:25]} 19. c5 {[%emt 0:07:21]} dxc5 {[%emt 0:01:19]} 20. Nxc5 {[%emt 0:05:03]} Qxc5 {[%emt 0:01:01]} 21. Qxb2 {[%emt 0:00:27]} b5 {[%emt 0:07:27]} 22. b4 {[%emt 0:02:35]} Qb6 {[%emt 0:00:49]} 23. Rec1 {[%emt 0:01:27]} Be6 {[%emt 0:02:28]} 24. Qc2 {[%emt 0:08:47]} axb4 {[%emt 0:02:05]} 25. axb4 {[%emt 0:00:20]} Bc4 {[%emt 0:00:08]} 26. Rb2 {[%emt 0:00:42]} Qd4 {[%emt 0:04:47]} 27. Rd1 {[%emt 0:02:13]} Qf6 {[%emt 0:02:00]} 28. f4 {[%emt 0:01:08]} Red8 {[%emt 0:05:01]} 29. e5 {[%emt 0:00:28]} Qe6 {[%emt 0:00:08]} 30. Rxd8+ {[%emt 0:00:49]} Rxd8 {[%emt 0:00:11]} 31. Rb1 {[%emt 0:00:48]} Qd7 {[%emt 0:02:50]} 32. Qf2 {[%emt 0:00:29]} Ra8 {[%emt 0:05:18]} 33. h3 {[%emt 0:00:49]} Qd3 34. Rb2 Bd5 {[%emt 0:03:00]} 35. Bxd5 {[%emt 0:01:27]} Qxd5 {[%emt 0:00:50]} 36. Qg2 Qd4+ {[%emt 0:00:28]} 37. Qf2 {[%emt 0:00:59]} Ra1+ {[%emt 0:05:30]} 38. Kh2 {[%emt 0:00:21]} Qxf2+ {[%emt 0:00:05]} 39. Rxf2 {[%emt 0:00:02]} Rb1 {[%emt 0:00:06]} 40. Rc2 {[%emt 0:00:06]} Rxb4 {[%emt 0:00:10]} 41. Rxc6 Rb1 {[%emt 0:30:20]} 42. Kg2 {[%emt 0:30:13]} b4 {[%emt 0:00:11]} 43. Rb6 b3 44. Kf3 {[%emt 0:00:00]} h5 {[%emt 0:00:00]} 45. Kg2 {[%emt 0:00:00]} Rb2+ {[%emt 0:00:00]} 46. Kf3 {[%emt 0:00:00]} Rb1 {[%emt 0:00:00]} 47. g4 {[%emt 0:00:00]} h4 {[%emt 0:00:00]} 48. f5 {[%emt 0:00:00]} gxf5 {[%emt 0:00:00]} 49. gxf5 {[%emt 0:00:00]} b2 {[%emt 0:00:00]} 50. Kg2 {[%emt 0:00:00]} Re1 {[%emt 0:00:00]} 51. Rxb2 {[%emt 0:00:00]} Rxe5 {[%emt 0:00:00]} 52. Rf2 {[%emt 0:00:00]} Kg7 {[%emt 0:00:00]} 53. Rf4 {[%emt 0:00:00]} Kf6 {[%emt 0:00:00]} 54. Rxh4 Rxf5 {[%emt 0:00:00]} 55. Kg3 {[%emt 0:00:00]} Ra5 {[%emt 0:00:00]} 56. Rf4+ {[%emt 0:00:29]} 1/2-1/2

[Event "EYTCC U12 Open 2019"]
[Site "Pardubice"]
[Date "2019.07.11"]
[Round "1.12"]
[White "Klimkowski, Jan"]
[Black "Durak, Can"]
[Result "1-0"]
[ECO "B33"]
[WhiteElo "1985"]
[BlackElo "1753"]
[Annotator "NA"]
[PlyCount "77"]
[EventDate "2019.07.11"]
[EventType "swiss"]
[EventCountry "CZE"]
[SourceTitle "playchess.com"]
[Source "ChessBase"]
[SourceQuality "1"]
[WhiteTeam "Poland"]
[BlackTeam "Turkey"]
[WhiteTeamCountry "POL"]
[BlackTeamCountry "TUR"]
[TimeControl "40/5400+30:1800+30"]

1. e4 {[%emt 0:00:00]} c5 {[%emt 0:00:00]} 2. Nf3 Nc6 3. d4 {[%emt 0:00:03]} cxd4 {[%emt 0:01:41]} 4. Nxd4 {[%emt 0:00:15]} Nf6 {[%emt 0:01:13]} 5. Nc3 {[%emt 0:00:21]} g6 {[%emt 0:02:19]} 6. Be3 {[%emt 0:00:59]} Bg7 {[%emt 0:01:01]} 7. Nxc6 {[%emt 0:01:11]} bxc6 {[%emt 0:00:45]} 8. e5 {[%emt 0:00:20]} Ng8 {[%emt 0:00:43]} 9. Bd4 {[%emt 0:00:19]} f6 {[%emt 0:09:49]} 10. exf6 {[%emt 0:01:18]} Nxf6 {[%emt 0:00:22]} 11. Bc4 {[%emt 0:00:56]} d5 {[%emt 0:01:47]} 12. Bb3 {[%emt 0:00:21]} O-O {[%emt 0:08:23]} 13. O-O {[%emt 0:03:29]} Bf5 {[%emt 0:06:42]} 14. Re1 {[%emt 0:04:51]} Re8 {[%emt 0:07:14]} 15. Qf3 {[%emt 0:04:44]} Qc8 {[%emt 0:09:56]} 16. h3 {[%emt 0:05:18]} h5 {[%emt 0:10:21]} 17. Re2 {[%emt 0:04:46]} Kh7 {[%emt 0:04:09]} 18. Rae1 {[%emt 0:04:41]} e6 {[%emt 0:02:23]} 19. Bxf6 {[%emt 0:09:28]} Bxf6 {[%emt 0:00:42]} 20. g4 {[%emt 0:00:36]} Bxc3 {[%emt 0:01:59]} 21. bxc3 {[%emt 0:00:12]} Be4 {[%emt 0:01:52]} 22. Qf7+ {[%emt 0:00:36]} Kh8 {[%emt 0:02:52]} 23. Qf6+ {[%emt 0:01:29]} Kh7 {[%emt 0:00:09]} 24. f3 {[%emt 0:01:16]} Qc7 {[%emt 0:00:44]} 25. fxe4 {[%emt 0:07:13]} Qg3+ {[%emt 0:00:27]} 26. Kh1 {[%emt 0:01:51]} Rf8 {[%emt 0:04:01]} 27. Qe7+ {[%emt 0:05:23]} Kh8 {[%emt 0:00:37]} 28. Re3 {[%emt 0:00:30]} Qf2 {[%emt 0:06:13]} 29. Qg5 {[%emt 0:05:51]} Rf3 {[%emt 0:02:01]} 30. Qe5+ {[%emt 0:01:49]} Kh7 {[%emt 0:01:11]} 31. Qh2 {[%emt 0:02:39]} hxg4 {[%emt 0:02:14]} 32. Qxf2 {[%emt 0:01:12]} Rxf2 {[%emt 0:00:07]} 33. exd5 {[%emt 0:00:30]} exd5 {[%emt 0:00:28]} 34. hxg4 {[%emt 0:00:18]} Kg7 {[%emt 0:00:10]} 35. g5 {[%emt 0:00:39]} a5 {[%emt 0:01:52]} 36. Re7+ {[%emt 0:00:57]} Kf8 {[%emt 0:00:13]} 37. Ba4 {[%emt 0:00:49]} c5 {[%emt 0:00:25]} 38. Bc6 {[%emt 0:01:14]} Rd8 {[%emt 0:00:08]} 39. Kg1 {[%emt 0:02:05]} 1-0

[Event "EYTCC U12 Open 2019"]
[Site "Pardubice"]
[Date "2019.07.11"]
[Round "1.13"]
[White "Bakiev, Diyor"]
[Black "Royal, Shreyas"]
[Result "0-1"]
[ECO "C86"]
[WhiteElo "2121"]
[BlackElo "1996"]
[Annotator "NA"]
[PlyCount "115"]
[EventDate "2019.07.11"]
[EventType "swiss"]
[EventCountry "CZE"]
[SourceTitle "playchess.com"]
[Source "ChessBase"]
[SourceQuality "1"]
[WhiteTeam "Germany"]
[BlackTeam "England"]
[WhiteTeamCountry "GER"]
[BlackTeamCountry "ENG"]
[TimeControl "40/5400+30:1800+30"]

1. e4 {[%emt 0:00:00]} e5 {[%emt 0:00:00]} 2. Nf3 {[%emt 0:00:00]} Nc6 {[%emt 0:00:08]} 3. Bb5 {[%emt 0:00:12]} a6 {[%emt 0:01:26]} 4. Ba4 {[%emt 0:00:06]} Nf6 {[%emt 0:00:39]} 5. Qe2 {[%emt 0:00:32]} b5 {[%emt 0:06:52]} 6. Bb3 {[%emt 0:00:08]} Be7 {[%emt 0:01:45]} 7. O-O {[%emt 0:00:16]} d6 {[%emt 0:04:01]} 8. c3 {[%emt 0:00:27]} Bg4 {[%emt 0:03:55]} 9. d3 {[%emt 0:03:34]} O-O {[%emt 0:03:29]} 10. Rd1 {[%emt 0:01:31]} Na5 {[%emt 0:04:31]} 11. Bc2 {[%emt 0:00:35]} c5 {[%emt 0:01:50]} 12. Nbd2 {[%emt 0:00:55]} Qc7 {[%emt 0:03:09]} 13. h3 {[%emt 0:00:39]} Bh5 {[%emt 0:05:17]} 14. Nf1 {[%emt 0:02:56]} Rfe8 {[%emt 0:07:12]} 15. g4 {[%emt 0:03:31]} Bg6 {[%emt 0:02:22]} 16. Ng3 {[%emt 0:00:10]} d5 {[%emt 0:01:53]} 17. h4 {[%emt 0:35:06]} c4 {[%emt 0:06:26]} 18. dxc4 {[%emt 0:08:40]} dxe4 {[%emt 0:02:43]} 19. Nh2 {[%emt 0:05:05]} e3 {[%emt 0:01:21]} 20. Bxe3 {[%emt 0:00:52]} Nxc4 {[%emt 0:01:22]} 21. Bf5 {[%emt 0:06:50]} Nxe3 {[%emt 0:00:54]} 22. fxe3 {[%emt 0:03:03]} e4 {[%emt 0:00:29]} 23. Kg2 {[%emt 0:01:33]} Bd6 {[%emt 0:02:37]} 24. Nhf1 {[%emt 0:01:20]} Bxg3 {[%emt 0:00:13]} 25. Nxg3 {[%emt 0:00:08]} Bxf5 {[%emt 0:00:04]} 26. Nxf5 {[%emt 0:00:40]} Qe5 {[%emt 0:00:07]} 27. Rf1 {[%emt 0:02:38]} Rad8 {[%emt 0:01:40]} 28. Rad1 {[%emt 0:02:37]} Rd3 {[%emt 0:01:42]} 29. g5 {[%emt 0:02:40]} Nd5 {[%emt 0:00:19]} 30. Qf2 {[%emt 0:06:55]} Rxd1 {[%emt 0:00:57]} 31. Nh6+ {[%emt 0:09:41]} gxh6 {[%emt 0:00:17]} 32. Rxd1 {[%emt 0:01:06]} hxg5 {[%emt 0:00:12]} 33. h5 {[%emt 0:00:42]} Qf5 {[%emt 0:00:24]} 34. Qe2 {[%emt 0:01:05]} Qf3+ {[%emt 0:00:10]} 35. Qxf3 {[%emt 0:00:15]} exf3+ {[%emt 0:00:05]} 36. Kxf3 {[%emt 0:00:15]} Rxe3+ {[%emt 0:00:28]} 37. Kf2 {[%emt 0:00:15]} Re5 {[%emt 0:00:06]} 38. h6 {[%emt 0:00:16]} f5 {[%emt 0:00:06]} 39. b3 {[%emt 0:00:27]} Nxc3 {[%emt 0:00:23]} 40. Rd7 {[%emt 0:00:32]} Ne4+ {[%emt 0:00:29]} 41. Kf3 {[%emt 0:30:29]} Nf6 {[%emt 0:30:13]} 42. Rg7+ {[%emt 0:00:09]} Kf8 {[%emt 0:00:28]} 43. Rxg5 {[%emt 0:00:14]} Ng4 {[%emt 0:00:57]} 44. Kf4 {[%emt 0:00:26]} Nxh6 {[%emt 0:00:27]} 45. Kxe5 {[%emt 0:01:22]} Nf7+ {[%emt 0:00:05]} 46. Kxf5 {[%emt 0:00:05]} Nxg5 {[%emt 0:00:03]} 47. Kxg5 {[%emt 0:00:06]} Ke7 {[%emt 0:00:06]} 48. Kh6 {[%emt 0:00:58]} Kd6 {[%emt 0:00:11]} 49. Kxh7 {[%emt 0:00:09]} Kc5 {[%emt 0:00:11]} 50. a3 {[%emt 0:01:48]} Kd4 {[%emt 0:00:18]} 51. Kg6 {[%emt 0:00:34]} Kc3 {[%emt 0:00:05]} 52. b4 {[%emt 0:00:35]} Kb3 {[%emt 0:00:07]} 53. Kf5 {[%emt 0:00:36]} Kxa3 {[%emt 0:00:09]} 54. Ke4 {[%emt 0:00:21]} Kxb4 {[%emt 0:00:05]} 55. Kd3 {[%emt 0:00:19]} Kb3 {[%emt 0:00:12]} 56. Kd2 {[%emt 0:00:04]} Kb2 {[%emt 0:00:02]} 57. Kd3 {[%emt 0:00:25]} a5 {[%emt 0:00:03]} 58. Kd4 0-1